[Event "FIDE WYCC Open U14 2023"]
[Site "Montesilvano"]
[Date "2023.11.13"]
[Round "1.15"]
[White "Yessengali, Adizhan"]
[Black "Zienkiewicz, Jan"]
[Result "1/2-1/2"]
[ECO "A01"]
[WhiteElo "1725"]
[BlackElo "2296"]
[Annotator "ChessBase"]
[PlyCount "86"]
[EventDate "2023.11.13"]
[EventType "swiss"]
[EventCountry "ITA"]
[SourceTitle "playchess.com"]
[Source "ChessBase"]
[SourceQuality "1"]
[TimeControl "40/5400+30:1800+30"]

1. b3 {[%emt 0:01:04]} e5 {[%emt 0:00:29]} 2. Bb2 {[%emt 0:00:06]} Nc6 {[%emt 0:00:11]} 3. e3 {[%emt 0:00:43]} d5 {[%emt 0:00:20]} 4. Bb5 {[%emt 0:00:44]} Nge7 {[%emt 0:00:13]} 5. Bxe5 {[%emt 0:04:50]} a6 {[%emt 0:00:09]} 6. Bxc6+ {[%emt 0:00:06]} Nxc6 {[%emt 0:00:06]} 7. Bg3 {[%emt 0:08:00]} h5 {[%emt 0:00:19]} 8. h3 {[%emt 0:06:15]} h4 {[%emt 0:02:30]} 9. Bf4 {[%emt 0:01:21]} g5 {[%emt 0:07:01]} 10. Bh2 {[%emt 0:02:47]} Bg7 {[%emt 0:04:05]} 11. d4 {[%emt 0:01:20]} Bf5 {[%emt 0:00:06]} 12. a3 {[%emt 0:06:04]} Qe7 {[%emt 0:02:49]} 13. Ne2 {[%emt 0:14:41]} O-O-O {[%emt 0:08:38]} 14. Nbc3 {[%emt 0:03:02]} Bg6 {[%emt 0:20:27]} 15. b4 {[%emt 0:14:27]} f5 {[%emt 0:05:46]} 16. Qd2 {[%emt 0:01:21]} f4 {[%emt 0:08:19]} 17. Rf1 {[%emt 0:02:09]} Rhe8 {[%emt 0:01:18]} 18. Bg1 {[%emt 0:01:15]} Bh5 {[%emt 0:09:18]} 19. Qd3 {[%emt 0:08:31]} Qf6 {[%emt 0:05:29]} 20. O-O-O {[%emt 0:11:03]} Bg6 {[%emt 0:03:27]} 21. Qd2 {[%emt 0:01:03]} f3 {[%emt 0:00:15]} 22. gxf3 {[%emt 0:00:26]} Qxf3 {[%emt 0:00:02]} 23. Bh2 {[%emt 0:01:12]} Qxh3 {[%emt 0:01:51]} 24. Rh1 {[%emt 0:00:03]} Qf5 {[%emt 0:00:28]} 25. Rdg1 {[%emt 0:00:43]} Qxf2 {[%emt 0:06:15]} 26. Rxg5 {[%emt 0:03:21]} Bh6 {[%emt 0:00:21]} 27. Bf4 {[%emt 0:00:00]} Bxg5 {[%emt 0:01:35]} 28. Bxg5 {[%emt 0:00:15]} Rd7 {[%emt 0:01:46]} 29. Nf4 {[%emt 0:01:38]} Qxd2+ {[%emt 0:03:52]} 30. Kxd2 {[%emt 0:00:01]} Be4 {[%emt 0:01:02]} 31. Rxh4 {[%emt 0:00:05]} b6 {[%emt 0:00:56]} 32. Rh6 {[%emt 0:02:01]} Kb7 {[%emt 0:00:40]} 33. Nxe4 {[%emt 0:02:15]} Rxe4 {[%emt 0:01:03]} 34. Kd3 {[%emt 0:00:38]} Re8 {[%emt 0:01:23]} 35. c3 {[%emt 0:00:17]} Rg8 {[%emt 0:01:28]} 36. Ne6 {[%emt 0:00:06]} Re8 {[%emt 0:02:11]} 37. Nf4 {[%emt 0:00:31]} Nd8 {[%emt 0:00:41]} 38. Rf6 {[%emt 0:02:26]} c6 {[%emt 0:00:45]} 39. Ng6 {[%emt 0:01:16]} Rf7 {[%emt 0:01:28]} 40. Rd6 {[%emt 0:00:00]} Re6 {[%emt 0:00:00]} 41. Rxd8 {[%emt 0:02:46]} Rxg6 {[%emt 0:00:40]} 42. Bf4 {[%emt 0:00:05]} Rh7 {[%emt 0:02:50]} 43. a4 {[%emt 0:01:47]} b5 {[%emt 0:14:52]} 1/2-1/2

[Event "FIDE WYCC Open U14 2023"]
[Site "Montesilvano"]
[Date "2023.11.13"]
[Round "1.16"]
[White "Tenuunbold, Battulga"]
[Black "Schrimpf, Michael"]
[Result "1-0"]
[ECO "A52"]
[WhiteElo "2290"]
[BlackElo "1718"]
[Annotator "ChessBase"]
[PlyCount "79"]
[EventDate "2023.11.13"]
[EventType "swiss"]
[EventCountry "ITA"]
[SourceTitle "playchess.com"]
[Source "ChessBase"]
[SourceQuality "1"]
[TimeControl "40/5400+30:1800+30"]

1. d4 {[%emt 0:00:09]} Nf6 {[%emt 0:00:09]} 2. c4 {[%emt 0:00:07]} e5 {[%emt 0:00:22]} 3. dxe5 {[%emt 0:00:21]} Ng4 {[%emt 0:00:01]} 4. Nf3 {[%emt 0:00:13]} Bc5 {[%emt 0:00:09]} 5. e3 {[%emt 0:00:19]} Nc6 {[%emt 0:00:05]} 6. Nc3 {[%emt 0:00:15]} O-O {[%emt 0:00:47]} 7. Be2 {[%emt 0:00:48]} Re8 {[%emt 0:00:51]} 8. O-O {[%emt 0:00:58]} Ngxe5 {[%emt 0:00:20]} 9. Nxe5 {[%emt 0:00:42]} Nxe5 {[%emt 0:00:26]} 10. b3 {[%emt 0:00:45]} a5 {[%emt 0:03:13]} 11. Na4 {[%emt 0:02:02]} Bf8 {[%emt 0:02:24]} 12. f4 {[%emt 0:00:29]} Nc6 {[%emt 0:02:42]} 13. Bf3 {[%emt 0:02:23]} b6 {[%emt 0:03:44]} 14. Bb2 {[%emt 0:02:25]} Bb7 {[%emt 0:05:26]} 15. e4 {[%emt 0:04:00]} Qe7 {[%emt 0:08:26]} 16. Nc3 {[%emt 0:01:43]} Nd8 {[%emt 0:16:46]} 17. Nd5 {[%emt 0:15:03]} Bxd5 {[%emt 0:03:14]} 18. cxd5 {[%emt 0:00:08]} Nb7 {[%emt 0:07:20]} 19. Qd2 {[%emt 0:02:35]} a4 {[%emt 0:04:29]} 20. e5 {[%emt 0:02:36]} Qb4 {[%emt 0:05:35]} 21. Bc3 {[%emt 0:01:28]} Qc5+ {[%emt 0:02:43]} 22. Kh1 {[%emt 0:00:25]} axb3 {[%emt 0:17:02]} 23. axb3 {[%emt 0:00:08]} c6 {[%emt 0:04:23]} 24. d6 {[%emt 0:00:48]} Qb5 {[%emt 0:00:28]} 25. b4 {[%emt 0:00:25]} Qc4 {[%emt 0:01:50]} 26. Be2 {[%emt 0:04:00]} Qb3 {[%emt 0:00:52]} 27. Rab1 {[%emt 0:00:44]} Qa2 {[%emt 0:04:59]} 28. Rb2 {[%emt 0:00:25]} Qa7 {[%emt 0:01:02]} 29. Bc4 {[%emt 0:01:56]} Qb8 {[%emt 0:02:00]} 30. Qd3 {[%emt 0:02:32]} b5 {[%emt 0:01:20]} 31. Bb3 {[%emt 0:00:28]} Nd8 {[%emt 0:01:17]} 32. Bc2 {[%emt 0:00:48]} g6 {[%emt 0:00:17]} 33. f5 {[%emt 0:00:03]} Bg7 {[%emt 0:00:30]} 34. Bb3 {[%emt 0:02:13]} Kh8 {[%emt 0:00:41]} 35. Rbf2 {[%emt 0:03:08]} Qb6 {[%emt 0:01:12]} 36. Bd4 {[%emt 0:00:32]} Qb7 {[%emt 0:00:13]} 37. e6 {[%emt 0:01:00]} dxe6 {[%emt 0:01:01]} 38. Bxg7+ {[%emt 0:00:04]} Kxg7 {[%emt 0:00:04]} 39. d7 {[%emt 0:00:05]} Re7 {[%emt 0:00:31]} 40. f6+ {[%emt 0:00:00]} 1-0

[Event "FIDE WYCC Open U14 2023"]
[Site "Montesilvano"]
[Date "2023.11.13"]
[Round "1.17"]
[White "Rashed Abubaker, Alhemeiri"]
[Black "Cieslak, Patryk"]
[Result "0-1"]
[ECO "C55"]
[WhiteElo "1717"]
[BlackElo "2284"]
[Annotator "ChessBase"]
[PlyCount "84"]
[EventDate "2023.11.13"]
[EventType "swiss"]
[EventCountry "ITA"]
[SourceTitle "playchess.com"]
[Source "ChessBase"]
[SourceQuality "1"]
[TimeControl "40/5400+30:1800+30"]

1. e4 {[%emt 0:00:09]} e5 {[%emt 0:00:01]} 2. Nf3 {[%emt 0:00:12]} Nc6 {[%emt 0:00:04]} 3. Bc4 {[%emt 0:00:22]} Nf6 {[%emt 0:00:06]} 4. d3 {[%emt 0:00:04]} h6 {[%emt 0:00:30]} 5. O-O {[%emt 0:00:07]} d6 {[%emt 0:00:10]} 6. h3 {[%emt 0:00:16]} g5 {[%emt 0:00:52]} 7. Nh2 {[%emt 0:03:32]} Bg7 {[%emt 0:02:25]} 8. c3 {[%emt 0:01:34]} O-O {[%emt 0:03:53]} 9. Re1 {[%emt 0:01:25]} Ne7 {[%emt 0:03:56]} 10. Nd2 {[%emt 0:09:22]} c6 {[%emt 0:04:45]} 11. Bb3 {[%emt 0:04:27]} Ng6 {[%emt 0:09:14]} 12. Ndf1 {[%emt 0:01:06]} Kh8 {[%emt 0:06:11]} 13. Ng3 {[%emt 0:01:27]} Nh4 {[%emt 0:06:26]} 14. Nh5 {[%emt 0:13:09]} Ng6 {[%emt 0:19:17]} 15. Nxg7 {[%emt 0:11:25]} Kxg7 {[%emt 0:00:01]} 16. d4 {[%emt 0:02:55]} Qe7 {[%emt 0:00:54]} 17. Nf1 {[%emt 0:13:01]} Be6 {[%emt 0:04:58]} 18. Ng3 {[%emt 0:02:24]} Nh4 {[%emt 0:01:41]} 19. Be3 {[%emt 0:06:05]} Rfd8 {[%emt 0:03:28]} 20. Qd2 {[%emt 0:04:08]} Kg6 {[%emt 0:03:45]} 21. Qe2 {[%emt 0:01:50]} Kh7 {[%emt 0:01:18]} 22. Rad1 {[%emt 0:00:41]} Rg8 {[%emt 0:02:51]} 23. dxe5 {[%emt 0:11:11]} dxe5 {[%emt 0:00:21]} 24. Nf5 {[%emt 0:02:18]} Nxf5 {[%emt 0:02:05]} 25. exf5 {[%emt 0:00:07]} Bxf5 {[%emt 0:03:52]} 26. Bd4 {[%emt 0:04:13]} e4 {[%emt 0:04:58]} 27. Bc2 {[%emt 0:01:12]} Rge8 {[%emt 0:04:32]} 28. Bxf6 {[%emt 0:02:07]} Qxf6 {[%emt 0:00:09]} 29. Rd4 {[%emt 0:00:21]} Re5 {[%emt 0:02:14]} 30. Bxe4 {[%emt 0:03:16]} Rae8 {[%emt 0:00:12]} 31. Qd3 {[%emt 0:00:58]} Kg7 {[%emt 0:01:28]} 32. f3 {[%emt 0:00:33]} Qe7 {[%emt 0:02:40]} 33. Re2 {[%emt 0:00:30]} Be6 {[%emt 0:01:44]} 34. Qc2 {[%emt 0:00:27]} c5 {[%emt 0:01:01]} 35. Rdd2 {[%emt 0:00:29]} c4 {[%emt 0:01:04]} 36. Qb1 {[%emt 0:00:35]} Bd5 {[%emt 0:01:18]} 37. Rd4 {[%emt 0:00:30]} f5 {[%emt 0:01:11]} 38. Bxd5 {[%emt 0:00:28]} Rxe2 {[%emt 0:00:10]} 39. Qxf5 {[%emt 0:00:18]} Re1+ {[%emt 0:00:44]} 40. Kh2 {[%emt 0:00:00]} Rf8 {[%emt 0:00:00]} 41. Qg4 {[%emt 0:12:41]} Qe5+ {[%emt 0:02:45]} 42. Qg3 {[%emt 0:01:18]} Rh1+ {[%emt 0:00:10]} 0-1

[Event "FIDE WYCC Open U14 2023"]
[Site "Montesilvano"]
[Date "2023.11.13"]
[Round "1.18"]
[White "Matyassy, Lazar"]
[Black "Praveen, Jeeva"]
[Result "1-0"]
[ECO "B03"]
[WhiteElo "2281"]
[BlackElo "1714"]
[Annotator "ChessBase"]
[PlyCount "93"]
[EventDate "2023.11.13"]
[EventType "swiss"]
[EventCountry "ITA"]
[SourceTitle "playchess.com"]
[Source "ChessBase"]
[SourceQuality "1"]
[TimeControl "40/5400+30:1800+30"]

1. e4 {[%emt 0:00:28]} Nf6 {[%emt 0:00:11]} 2. e5 {[%emt 0:00:08]} Nd5 {[%emt 0:00:06]} 3. c4 {[%emt 0:00:06]} Nb6 {[%emt 0:00:08]} 4. d4 {[%emt 0:00:05]} d6 {[%emt 0:00:04]} 5. exd6 {[%emt 0:00:10]} cxd6 {[%emt 0:00:10]} 6. Nc3 {[%emt 0:00:08]} g6 {[%emt 0:00:44]} 7. h3 {[%emt 0:00:07]} Bg7 {[%emt 0:00:08]} 8. Nf3 {[%emt 0:00:06]} O-O {[%emt 0:01:29]} 9. Be2 {[%emt 0:00:20]} Nc6 {[%emt 0:00:42]} 10. O-O {[%emt 0:00:18]} Bf5 {[%emt 0:00:57]} 11. d5 {[%emt 0:00:22]} Na5 {[%emt 0:02:50]} 12. Nd4 {[%emt 0:00:31]} Bd7 {[%emt 0:00:42]} 13. b3 {[%emt 0:02:53]} Qc7 {[%emt 0:04:19]} 14. Be3 {[%emt 0:20:41]} a6 {[%emt 0:20:57]} 15. Rc1 {[%emt 0:01:58]} Rac8 {[%emt 0:02:00]} 16. Ne4 {[%emt 0:06:06]} e5 {[%emt 0:22:41]} 17. dxe6 {[%emt 0:03:27]} fxe6 {[%emt 0:00:39]} 18. Bg4 {[%emt 0:02:55]} Rce8 {[%emt 0:10:48]} 19. Ng5 {[%emt 0:04:36]} Rf6 {[%emt 0:10:31]} 20. Ne4 {[%emt 0:07:21]} Rf7 {[%emt 0:01:34]} 21. Qd2 {[%emt 0:15:52]} Nc6 {[%emt 0:11:00]} 22. Nxc6 {[%emt 0:00:34]} Bxc6 {[%emt 0:00:58]} 23. Nxd6 {[%emt 0:01:43]} Ree7 {[%emt 0:05:41]} 24. Nxf7 {[%emt 0:00:52]} Kxf7 {[%emt 0:00:23]} 25. Bf4 {[%emt 0:03:49]} e5 {[%emt 0:00:51]} 26. Bg5 {[%emt 0:00:10]} Re8 {[%emt 0:00:15]} 27. Rcd1 {[%emt 0:00:42]} Nc8 {[%emt 0:02:21]} 28. b4 {[%emt 0:03:19]} Ne7 {[%emt 0:00:49]} 29. Bd7 {[%emt 0:03:03]} Bxd7 {[%emt 0:00:26]} 30. Qxd7 {[%emt 0:00:09]} Qxc4 {[%emt 0:00:11]} 31. Qxb7 {[%emt 0:00:20]} Qe6 {[%emt 0:00:42]} 32. a4 {[%emt 0:03:17]} h6 {[%emt 0:00:14]} 33. Bxe7 {[%emt 0:00:49]} Rxe7 {[%emt 0:00:01]} 34. Qe4 {[%emt 0:00:29]} Bf6 {[%emt 0:01:11]} 35. Rd5 {[%emt 0:00:44]} Kg7 {[%emt 0:00:18]} 36. Rfd1 {[%emt 0:00:18]} Qc6 {[%emt 0:00:33]} 37. b5 {[%emt 0:00:41]} Qb7 {[%emt 0:00:31]} 38. bxa6 Qxa6 {[%emt 0:00:03]} 39. Rd7 {[%emt 0:01:05]} Qe6 {[%emt 0:00:30]} 40. Rxe7+ {[%emt 0:00:00]} Qxe7 {[%emt 0:00:00]} 41. Qc6 {[%emt 0:00:58]} Qf8 {[%emt 0:01:13]} 42. Rd7+ {[%emt 0:01:19]} Kh8 {[%emt 0:00:49]} 43. Qe6 {[%emt 0:00:23]} Bg7 {[%emt 0:01:47]} 44. Qf7 {[%emt 0:00:10]} Qxf7 {[%emt 0:00:46]} 45. Rxf7 {[%emt 0:00:08]} Kg8 {[%emt 0:00:14]} 46. Rxg7+ {[%emt 0:00:15]} Kxg7 {[%emt 0:00:07]} 47. a5 {[%emt 0:00:05]} 1-0

[Event "FIDE WYCC Open U14 2023"]
[Site "Montesilvano"]
[Date "2023.11.13"]
[Round "1.19"]
[White "Salinas Cardenas, Rodrigo Salvador"]
[Black "Averin, Nikolay"]
[Result "1-0"]
[ECO "D35"]
[WhiteElo "1714"]
[BlackElo "2270"]
[Annotator "ChessBase"]
[PlyCount "73"]
[EventDate "2023.11.13"]
[EventType "swiss"]
[EventCountry "ITA"]
[SourceTitle "playchess.com"]
[Source "ChessBase"]
[SourceQuality "1"]
[TimeControl "40/5400+30:1800+30"]

1. d4 {[%emt 0:00:21]} d5 {[%emt 0:00:03]} 2. c4 {[%emt 0:00:08]} e6 {[%emt 0:00:24]} 3. Nc3 {[%emt 0:00:12]} Nf6 {[%emt 0:00:06]} 4. cxd5 {[%emt 0:00:26]} exd5 {[%emt 0:00:02]} 5. Bg5 {[%emt 0:00:11]} c6 {[%emt 0:00:04]} 6. e3 {[%emt 0:00:24]} Bd6 {[%emt 0:00:40]} 7. Bd3 {[%emt 0:00:15]} Nbd7 {[%emt 0:00:07]} 8. Nge2 {[%emt 0:00:55]} Nf8 {[%emt 0:00:31]} 9. Qc2 {[%emt 0:01:06]} Ng6 {[%emt 0:01:57]} 10. f3 {[%emt 0:00:36]} h6 {[%emt 0:10:25]} 11. Bxf6 {[%emt 0:00:42]} Qxf6 {[%emt 0:00:03]} 12. O-O {[%emt 0:00:39]} Ne7 {[%emt 0:39:27]} 13. e4 {[%emt 0:14:56]} Qe6 {[%emt 0:09:01]} 14. e5 {[%emt 0:12:33]} Bc7 {[%emt 0:00:17]} 15. Nf4 {[%emt 0:20:51]} Qd7 {[%emt 0:00:16]} 16. Nh5 {[%emt 0:02:24]} O-O {[%emt 0:06:37]} 17. Qf2 {[%emt 0:06:47]} Nf5 {[%emt 0:03:53]} 18. Ne2 {[%emt 0:04:08]} Bb6 {[%emt 0:09:49]} 19. g4 {[%emt 0:07:27]} Nxd4 {[%emt 0:07:21]} 20. Nxd4 {[%emt 0:00:29]} c5 {[%emt 0:00:25]} 21. Qh4 {[%emt 0:07:19]} c4 {[%emt 0:04:57]} 22. Nf6+ {[%emt 0:12:13]} gxf6 {[%emt 0:00:07]} 23. Bf5 {[%emt 0:01:07]} Qe7 {[%emt 0:04:32]} 24. Kh1 {[%emt 0:04:26]} Kg7 {[%emt 0:00:48]} 25. Ne2 {[%emt 0:01:52]} Bxf5 {[%emt 0:00:28]} 26. gxf5 {[%emt 0:00:10]} Qxe5 {[%emt 0:00:29]} 27. Ng3 {[%emt 0:00:50]} Be3 {[%emt 0:00:39]} 28. f4 {[%emt 0:00:31]} Bxf4 {[%emt 0:00:31]} 29. Rxf4 {[%emt 0:00:19]} Rg8 {[%emt 0:00:24]} 30. Nh5+ {[%emt 0:00:11]} Kf8 {[%emt 0:00:24]} 31. Nxf6 {[%emt 0:00:40]} Qxb2 {[%emt 0:00:31]} 32. Qxh6+ {[%emt 0:00:36]} Ke7 {[%emt 0:00:12]} 33. Re1+ {[%emt 0:00:15]} Kd8 {[%emt 0:00:11]} 34. Nxg8 {[%emt 0:00:21]} Qb4 {[%emt 0:00:45]} 35. Qf6+ {[%emt 0:00:14]} Kc8 {[%emt 0:00:10]} 36. Ne7+ {[%emt 0:00:20]} Kd7 {[%emt 0:00:04]} 37. Rd1 {[%emt 0:00:46]} 1-0

[Event "FIDE WYCC Open U14 2023"]
[Site "Montesilvano"]
[Date "2023.11.13"]
[Round "1.20"]
[White "Kozlovic, Jernej"]
[Black "Rustemov, Gurbanmyrat"]
[Result "1-0"]
[ECO "B00"]
[WhiteElo "2263"]
[BlackElo "1713"]
[Annotator "ChessBase"]
[PlyCount "59"]
[EventDate "2023.11.13"]
[EventType "swiss"]
[EventCountry "ITA"]
[SourceTitle "playchess.com"]
[Source "ChessBase"]
[SourceQuality "1"]
[TimeControl "40/5400+30:1800+30"]

1. e4 {[%emt 0:00:06]} Nc6 {[%emt 0:00:06]} 2. Nf3 {[%emt 0:00:51]} d5 {[%emt 0:00:43]} 3. exd5 {[%emt 0:01:54]} Qxd5 {[%emt 0:00:13]} 4. Nc3 {[%emt 0:01:25]} Qa5 {[%emt 0:00:13]} 5. Bc4 {[%emt 0:07:02]} Bg4 {[%emt 0:04:26]} 6. h3 {[%emt 0:03:21]} Bh5 {[%emt 0:01:27]} 7. O-O {[%emt 0:03:05]} O-O-O {[%emt 0:03:09]} 8. Be2 {[%emt 0:19:19]} Nf6 {[%emt 0:06:26]} 9. d3 {[%emt 0:00:32]} h6 {[%emt 0:06:51]} 10. a3 {[%emt 0:03:58]} e6 11. Be3 {[%emt 0:09:45]} Bxf3 {[%emt 0:24:11]} 12. Bxf3 {[%emt 0:00:23]} Nd4 {[%emt 0:05:11]} 13. Re1 {[%emt 0:04:20]} g5 {[%emt 0:05:54]} 14. b4 {[%emt 0:01:19]} Qf5 {[%emt 0:04:53]} 15. Bxd4 {[%emt 0:12:38]} Rxd4 {[%emt 0:01:08]} 16. Ne2 {[%emt 0:04:52]} Rh4 {[%emt 0:06:14]} 17. Ng3 {[%emt 0:05:46]} Qg6 18. Re5 {[%emt 0:11:17]} Bd6 {[%emt 0:10:05]} 19. Ra5 {[%emt 0:01:12]} Kb8 {[%emt 0:01:27]} 20. Qe2 {[%emt 0:01:23]} Rd8 {[%emt 0:06:23]} 21. Ne4 {[%emt 0:03:47]} Nxe4 {[%emt 0:02:24]} 22. dxe4 {[%emt 0:00:55]} e5 {[%emt 0:02:35]} 23. g3 {[%emt 0:01:07]} Rxh3 {[%emt 0:00:56]} 24. Bg4 {[%emt 0:00:19]} h5 {[%emt 0:01:44]} 25. Bxh3 {[%emt 0:00:17]} g4 {[%emt 0:00:09]} 26. Bg2 {[%emt 0:00:28]} h4 {[%emt 0:00:14]} 27. gxh4 {[%emt 0:00:16]} Rh8 {[%emt 0:00:34]} 28. Rd5 {[%emt 0:00:15]} Rxh4 {[%emt 0:00:44]} 29. Rd3 {[%emt 0:00:27]} Rh6 {[%emt 0:01:42]} 30. Rg3 {[%emt 0:00:43]} 1-0

[Event "FIDE WYCC Open U14 2023"]
[Site "Montesilvano"]
[Date "2023.11.13"]
[Round "1.21"]
[White "Yang, Sylvia Siyuan"]
[Black "Balint, Peter"]
[Result "1-0"]
[ECO "A05"]
[WhiteElo "1973"]
[BlackElo "2256"]
[Annotator "ChessBase"]
[PlyCount "101"]
[EventDate "2023.11.13"]
[EventType "swiss"]
[EventCountry "ITA"]
[SourceTitle "playchess.com"]
[Source "ChessBase"]
[SourceQuality "1"]
[TimeControl "40/5400+30:1800+30"]

1. Nf3 {[%emt 0:00:26]} Nf6 {[%emt 0:00:12]} 2. g3 {[%emt 0:00:06]} c5 {[%emt 0:00:07]} 3. Bg2 {[%emt 0:00:05]} g6 {[%emt 0:00:08]} 4. O-O {[%emt 0:00:24]} Bg7 {[%emt 0:00:08]} 5. c4 {[%emt 0:00:02]} O-O {[%emt 0:00:11]} 6. Nc3 {[%emt 0:00:31]} Nc6 {[%emt 0:00:13]} 7. e3 {[%emt 0:00:44]} e5 {[%emt 0:19:54]} 8. d4 {[%emt 0:03:45]} cxd4 {[%emt 0:08:31]} 9. exd4 {[%emt 0:00:06]} d6 {[%emt 0:01:22]} 10. h3 {[%emt 0:12:56]} Re8 {[%emt 0:08:44]} 11. Be3 {[%emt 0:07:05]} exd4 {[%emt 0:03:44]} 12. Nxd4 {[%emt 0:00:05]} Ne5 {[%emt 0:01:23]} 13. b3 {[%emt 0:00:41]} a6 {[%emt 0:03:03]} 14. Rc1 {[%emt 0:02:23]} Rb8 {[%emt 0:15:05]} 15. Qd2 {[%emt 0:03:04]} Be6 {[%emt 0:04:59]} 16. Rfd1 {[%emt 0:01:04]} Qd7 {[%emt 0:04:06]} 17. Nxe6 {[%emt 0:03:02]} Rxe6 {[%emt 0:01:14]} 18. Nd5 {[%emt 0:01:36]} h5 {[%emt 0:08:52]} 19. Ba7 {[%emt 0:04:27]} Rf8 {[%emt 0:01:46]} 20. Bb6 {[%emt 0:00:30]} Rc8 {[%emt 0:03:13]} 21. Ba5 {[%emt 0:03:52]} Nxd5 {[%emt 0:05:06]} 22. cxd5 {[%emt 0:00:25]} Ree8 {[%emt 0:02:00]} 23. f4 {[%emt 0:00:39]} Rxc1 {[%emt 0:00:05]} 24. Rxc1 {[%emt 0:04:40]} Bh6 {[%emt 0:00:56]} 25. Rc7 Qf5 {[%emt 0:02:04]} 26. Qe2 {[%emt 0:07:28]} Qd3 {[%emt 0:00:47]} 27. Qf1 {[%emt 0:05:01]} Qe3+ {[%emt 0:01:00]} 28. Kh2 {[%emt 0:00:41]} h4 {[%emt 0:03:24]} 29. fxe5 {[%emt 0:00:41]} Qxg3+ {[%emt 0:00:06]} 30. Kh1 {[%emt 0:00:32]} Bf4 {[%emt 0:00:05]} 31. Qg1 {[%emt 0:00:17]} Bxe5 {[%emt 0:00:44]} 32. Be1 {[%emt 0:00:33]} Qd3 {[%emt 0:02:34]} 33. Qf1 {[%emt 0:01:11]} Qxf1+ {[%emt 0:00:33]} 34. Bxf1 {[%emt 0:00:00]} Bf6 {[%emt 0:00:12]} 35. Bf2 {[%emt 0:00:09]} Re5 {[%emt 0:00:21]} 36. Rxb7 {[%emt 0:01:29]} Rxd5 {[%emt 0:01:02]} 37. Bxa6 {[%emt 0:00:02]} Rd1+ {[%emt 0:00:18]} 38. Kg2 {[%emt 0:00:01]} Rd2 {[%emt 0:00:08]} 39. Kf3 {[%emt 0:00:00]} d5 {[%emt 0:00:18]} 40. a4 {[%emt 0:00:00]} Ra2 {[%emt 0:00:00]} 41. Bb5 {[%emt 0:01:15]} Rc2 {[%emt 0:00:38]} 42. Be8 {[%emt 0:01:32]} Rc3+ {[%emt 0:00:10]} 43. Kg4 {[%emt 0:00:06]} d4 {[%emt 0:00:59]} 44. Bxf7+ {[%emt 0:00:32]} Kg7 {[%emt 0:00:08]} 45. Bc4+ {[%emt 0:00:15]} Kh6 {[%emt 0:00:11]} 46. Rf7 {[%emt 0:00:44]} Be5 {[%emt 0:00:15]} 47. Re7 {[%emt 0:01:19]} Bf6 {[%emt 0:00:10]} 48. Re6 {[%emt 0:00:05]} Bg7 {[%emt 0:00:15]} 49. Bxh4 {[%emt 0:00:07]} d3 {[%emt 0:00:40]} 50. Bg5+ {[%emt 0:00:08]} Kh7 {[%emt 0:00:08]} 51. Rd6 {[%emt 0:00:05]} 1-0

[Event "FIDE WYCC Open U14 2023"]
[Site "Montesilvano"]
[Date "2023.11.13"]
[Round "1.22"]
[White "Dinh Nho Kiet"]
[Black "Kabylbek, Yedil"]
[Result "0-1"]
[ECO "D35"]
[WhiteElo "2253"]
[BlackElo "1710"]
[Annotator "ChessBase"]
[PlyCount "124"]
[EventDate "2023.11.13"]
[EventType "swiss"]
[EventCountry "ITA"]
[SourceTitle "playchess.com"]
[Source "ChessBase"]
[SourceQuality "1"]
[TimeControl "40/5400+30:1800+30"]

1. d4 {[%emt 0:00:13]} Nf6 {[%emt 0:00:24]} 2. c4 {[%emt 0:00:11]} e6 {[%emt 0:00:11]} 3. Nc3 {[%emt 0:00:15]} d5 {[%emt 0:00:14]} 4. cxd5 {[%emt 0:00:30]} exd5 {[%emt 0:00:09]} 5. Bg5 {[%emt 0:00:06]} Bb4 {[%emt 0:00:16]} 6. e3 {[%emt 0:00:22]} h6 {[%emt 0:00:07]} 7. Bh4 {[%emt 0:08:33]} g5 {[%emt 0:00:12]} 8. Bg3 {[%emt 0:00:03]} Ne4 {[%emt 0:00:13]} 9. Nge2 {[%emt 0:00:16]} h5 {[%emt 0:00:16]} 10. f3 {[%emt 0:10:56]} Nxg3 {[%emt 0:00:10]} 11. hxg3 {[%emt 0:00:04]} Qe7 {[%emt 0:01:51]} 12. Kf2 {[%emt 0:05:14]} c6 {[%emt 0:00:59]} 13. a3 {[%emt 0:01:37]} Bd6 {[%emt 0:00:14]} 14. e4 {[%emt 0:02:03]} Be6 {[%emt 0:00:08]} 15. e5 {[%emt 0:02:27]} Bc7 {[%emt 0:00:07]} 16. f4 {[%emt 0:03:23]} Nd7 {[%emt 0:13:46]} 17. Qd3 {[%emt 0:02:20]} Bg4 {[%emt 0:00:58]} 18. Qe3 {[%emt 0:15:15]} O-O-O {[%emt 0:09:02]} 19. Rc1 {[%emt 0:05:00]} f6 {[%emt 0:04:27]} 20. Ke1 {[%emt 0:05:22]} Nb6 {[%emt 0:01:16]} 21. Ng1 {[%emt 0:01:10]} h4 {[%emt 0:06:08]} 22. gxh4 {[%emt 0:02:28]} gxf4 {[%emt 0:01:12]} 23. Qxf4 {[%emt 0:00:05]} Qe6 {[%emt 0:01:04]} 24. Qxf6 {[%emt 0:11:06]} Qxf6 {[%emt 0:00:05]} 25. exf6 {[%emt 0:00:05]} Bg3+ {[%emt 0:00:09]} 26. Kd2 {[%emt 0:00:02]} Bf4+ {[%emt 0:00:29]} 27. Kc2 {[%emt 0:00:03]} Bxc1 {[%emt 0:00:10]} 28. Kxc1 {[%emt 0:00:02]} Rdf8 {[%emt 0:00:17]} 29. Nf3 Bxf3 {[%emt 0:02:47]} 30. gxf3 {[%emt 0:03:32]} Rxf6 {[%emt 0:00:10]} 31. Bh3+ {[%emt 0:00:04]} Kc7 {[%emt 0:00:07]} 32. Bg4 {[%emt 0:00:05]} Nc4 {[%emt 0:03:05]} 33. h5 {[%emt 0:02:38]} Ne3 {[%emt 0:04:47]} 34. Ne2 {[%emt 0:08:01]} Nxg4 {[%emt 0:04:21]} 35. fxg4 {[%emt 0:00:03]} Rf2 {[%emt 0:00:12]} 36. Kd1 {[%emt 0:08:36]} Rg2 {[%emt 0:01:43]} 37. Rh4 {[%emt 0:02:01]} Rg8 {[%emt 0:02:02]} 38. h6 {[%emt 0:00:10]} R8xg4 {[%emt 0:00:10]} 39. Rh5 Rg8 {[%emt 0:06:54]} 40. Nf4 {[%emt 0:00:00]} R2g4 {[%emt 0:00:00]} 41. Rf5 {[%emt 0:02:31]} Rg1+ {[%emt 0:05:53]} 42. Kc2 {[%emt 0:00:43]} Rh1 {[%emt 0:02:13]} 43. Rf7+ {[%emt 0:00:08]} Kd6 {[%emt 0:12:41]} 44. Rxb7 {[%emt 0:07:10]} Rxh6 {[%emt 0:04:07]} 45. Nd3 {[%emt 0:01:41]} Rh4 {[%emt 0:02:01]} 46. Rxa7 {[%emt 0:08:30]} Rxd4 {[%emt 0:00:10]} 47. Nb4 {[%emt 0:03:27]} Rg2+ {[%emt 0:00:28]} 48. Kc3 {[%emt 0:00:36]} Rf4 {[%emt 0:01:05]} 49. Kb3 {[%emt 0:01:19]} Rf3+ {[%emt 0:00:38]} 50. Ka2 {[%emt 0:00:04]} c5 {[%emt 0:02:53]} 51. Ra6+ {[%emt 0:03:24]} Ke5 {[%emt 0:00:08]} 52. Nc6+ {[%emt 0:00:06]} Ke4 {[%emt 0:00:06]} 53. Ra8 {[%emt 0:02:41]} d4 {[%emt 0:01:48]} 54. Re8+ {[%emt 0:01:11]} Kd5 {[%emt 0:00:36]} 55. Na5 {[%emt 0:00:04]} Rc2 {[%emt 0:03:23]} 56. Kb1 {[%emt 0:01:50]} Rff2 {[%emt 0:04:44]} 57. Rb8 {[%emt 0:00:10]} c4 {[%emt 0:02:02]} 58. Rb5+ {[%emt 0:01:36]} Ke4 {[%emt 0:00:22]} 59. Rb4 {[%emt 0:02:08]} Kd3 {[%emt 0:02:51]} 60. Nc6 {[%emt 0:00:01]} Rfe2 {[%emt 0:00:16]} 61. Rb7 {[%emt 0:00:41]} Re1+ {[%emt 0:00:14]} 62. Ka2 {[%emt 0:00:05]} Rcc1 {[%emt 0:00:07]} 0-1